[Event "European Online Club-ch-A 2021"]
[Site "Online"]
[Date "2021.03.27"]
[Round "1.14"]
[White "Fitzsimons, David"]
[Black "Nemeth, Miklos"]
[Result "0-1"]
[ECO "C49"]
[WhiteElo "2324"]
[BlackElo "2488"]
[Annotator "ChessBase"]
[PlyCount "172"]
[EventDate "2021.03.27"]
[EventType "team-tourn"]
[EventCountry "NET"]
[SourceTitle "playchess.com"]
[Source "ChessBase"]
[SourceQuality "1"]
[TimeControl "900+5"]

1. e4 {[%emt 0:00:00]} e5 {[%emt 0:00:04]} 2. Nf3 {[%emt 0:00:05]} Nc6 {[%emt 0:00:03]} 3. Nc3 {[%emt 0:00:04]} Nf6 {[%emt 0:00:04]} 4. Bb5 {[%emt 0:00:02]} Bb4 {[%emt 0:00:03]} 5. O-O {[%emt 0:00:02]} O-O {[%emt 0:00:07]} 6. Bxc6 {[%emt 0:00:02]} dxc6 {[%emt 0:00:03]} 7. d3 {[%emt 0:00:01]} Bg4 {[%emt 0:00:04]} 8. h3 {[%emt 0:00:03]} Bh5 {[%emt 0:00:04]} 9. Kh2 {[%emt 0:00:03]} Re8 {[%emt 0:00:08]} 10. Rg1 {[%emt 0:00:17]} Bxc3 {[%emt 0:01:10]} 11. bxc3 {[%emt 0:00:03]} Nd7 {[%emt 0:00:02]} 12. g4 {[%emt 0:00:05]} Bg6 {[%emt 0:00:01]} 13. h4 {[%emt 0:01:36]} h5 {[%emt 0:00:51]} 14. Ng5 {[%emt 0:05:03]} Nf6 {[%emt 0:00:53]} 15. gxh5 {[%emt 0:00:17]} Bxh5 {[%emt 0:00:31]} 16. f3 {[%emt 0:00:03]} Nh7 {[%emt 0:01:34]} 17. Qe1 {[%emt 0:01:04]} Nf8 {[%emt 0:01:24]} 18. Qg3 {[%emt 0:00:36]} g6 {[%emt 0:00:22]} 19. f4 {[%emt 0:00:46]} Qd6 {[%emt 0:01:25]} 20. f5 {[%emt 0:01:12]} c5 {[%emt 0:00:36]} 21. c4 {[%emt 0:00:33]} Nd7 {[%emt 0:01:36]} 22. Bb2 {[%emt 0:00:58]} Re7 {[%emt 0:00:41]} 23. Raf1 {[%emt 0:00:05]} Rf8 {[%emt 0:01:18]} 24. Nf3 {[%emt 0:00:49]} f6 {[%emt 0:00:57]} 25. fxg6 {[%emt 0:00:04]} Rg7 {[%emt 0:00:02]} 26. Bc1 {[%emt 0:00:22]} Rxg6 {[%emt 0:00:08]} 27. Qh3 {[%emt 0:00:04]} Rxg1 {[%emt 0:00:44]} 28. Rxg1+ {[%emt 0:00:04]} Kf7 {[%emt 0:00:02]} 29. Qf5 {[%emt 0:00:24]} Bxf3 {[%emt 0:00:27]} 30. Qxf3 {[%emt 0:00:03]} Rh8 {[%emt 0:00:19]} 31. h5 {[%emt 0:00:08]} Nf8 {[%emt 0:00:28]} 32. Qg4 {[%emt 0:00:33]} Ne6 {[%emt 0:00:12]} 33. Qg6+ {[%emt 0:00:03]} Ke7 {[%emt 0:00:02]} 34. Bh6 {[%emt 0:00:19]} Kd7 {[%emt 0:00:46]} 35. Qxf6 {[%emt 0:00:16]} Rh7 {[%emt 0:00:08]} 36. Qg6 {[%emt 0:00:39]} Qe7 {[%emt 0:00:06]} 37. Bg5 {[%emt 0:00:13]} Qg7 {[%emt 0:00:04]} 38. Qxg7+ {[%emt 0:00:14]} Nxg7 {[%emt 0:00:06]} 39. h6 {[%emt 0:00:02]} Ne6 {[%emt 0:00:02]} 40. Be3 {[%emt 0:00:02]} Ke7 {[%emt 0:00:04]} 41. Rg8 {[%emt 0:00:13]} b6 {[%emt 0:00:07]} 42. Kg3 {[%emt 0:00:05]} Kf6 {[%emt 0:00:11]} 43. Kg4 {[%emt 0:00:04]} a5 {[%emt 0:00:08]} 44. Kh5 {[%emt 0:00:20]} Kf7 {[%emt 0:00:07]} 45. Rc8 {[%emt 0:00:03]} Kf6 {[%emt 0:00:04]} 46. c3 {[%emt 0:00:02]} Ng7+ {[%emt 0:00:06]} 47. Kg4 {[%emt 0:00:03]} Ne6 {[%emt 0:00:01]} 48. Kh4 {[%emt 0:00:08]} Kf7 {[%emt 0:00:16]} 49. a4 {[%emt 0:00:05]} Kf6 {[%emt 0:00:02]} 50. Kh5 {[%emt 0:00:02]} Ng7+ {[%emt 0:00:03]} 51. Kg4 {[%emt 0:00:02]} Ne6 {[%emt 0:00:01]} 52. Re8 {[%emt 0:00:05]} Kf7 {[%emt 0:00:03]} 53. Rb8 {[%emt 0:00:03]} Kf6 {[%emt 0:00:02]} 54. Rb7 {[%emt 0:00:06]} Kf7 {[%emt 0:00:02]} 55. Kf5 {[%emt 0:00:04]} Rh8 {[%emt 0:00:02]} 56. Kxe5 {[%emt 0:00:08]} Ke7 {[%emt 0:00:05]} 57. d4 {[%emt 0:00:10]} Kd7 {[%emt 0:00:03]} 58. d5 {[%emt 0:00:04]} Nd8 {[%emt 0:00:05]} 59. Ra7 {[%emt 0:00:03]} Nf7+ {[%emt 0:00:02]} 60. Kf6 {[%emt 0:00:03]} Nxh6 {[%emt 0:00:22]} 61. Kg7 {[%emt 0:00:03]} Re8 {[%emt 0:00:03]} 62. Bxh6 {[%emt 0:00:07]} Rxe4 {[%emt 0:00:02]} 63. Kf6 {[%emt 0:00:02]} Rxc4 {[%emt 0:00:03]} 64. Kf5 {[%emt 0:00:08]} Kd6 {[%emt 0:00:03]} 65. Bf4+ {[%emt 0:00:02]} Kxd5 {[%emt 0:00:02]} 66. Rxc7 {[%emt 0:00:03]} Rxa4 {[%emt 0:00:09]} 67. Be5 {[%emt 0:00:05]} b5 {[%emt 0:00:04]} 68. Rd7+ {[%emt 0:00:05]} Kc4 {[%emt 0:00:03]} 69. Rh7 {[%emt 0:00:08]} b4 {[%emt 0:00:05]} 70. Rh4+ {[%emt 0:00:07]} Kb3 {[%emt 0:00:02]} 71. c4 {[%emt 0:00:03]} Ra2 {[%emt 0:00:05]} 72. Rh3+ {[%emt 0:00:05]} Kxc4 {[%emt 0:00:03]} 73. Rh4+ {[%emt 0:00:05]} Kb5 {[%emt 0:00:02]} 74. Ke6 {[%emt 0:00:03]} Rd2 {[%emt 0:00:03]} 75. Rh8 {[%emt 0:00:03]} a4 {[%emt 0:00:04]} 76. Rb8+ {[%emt 0:00:03]} Kc4 {[%emt 0:00:03]} 77. Rc8 {[%emt 0:00:03]} a3 {[%emt 0:00:04]} 78. Bd6 {[%emt 0:00:01]} Rxd6+ {[%emt 0:00:04]} 79. Kxd6 {[%emt 0:00:03]} a2 {[%emt 0:00:02]} 80. Ra8 {[%emt 0:00:08]} b3 {[%emt 0:00:04]} 81. Ra4+ {[%emt 0:00:12]} Kb5 {[%emt 0:00:06]} 82. Ra8 {[%emt 0:00:02]} b2 {[%emt 0:00:05]} 83. Rb8+ {[%emt 0:00:04]} Kc4 {[%emt 0:00:04]} 84. Rxb2 {[%emt 0:00:03]} a1=Q {[%emt 0:00:04]} 85. Rc2+ {[%emt 0:00:02]} Kd4 {[%emt 0:00:06]} 86. Rd2+ {[%emt 0:00:03]} Kc3 {[%emt 0:00:04]} 0-1

[Event "European Online Club-ch-A 2021"]
[Site "Online"]
[Date "2021.03.27"]
[Round "1.15"]
[White "Kovacs, Gabor"]
[Black "Pein, Malcolm"]
[Result "1/2-1/2"]
[ECO "A30"]
[WhiteElo "2455"]
[BlackElo "2309"]
[Annotator "ChessBase"]
[PlyCount "63"]
[EventDate "2021.03.27"]
[EventType "team-tourn"]
[EventCountry "NET"]
[SourceTitle "playchess.com"]
[Source "ChessBase"]
[SourceQuality "1"]
[TimeControl "900+5"]

1. c4 {[%emt 0:00:00]} Nf6 {[%emt 0:00:43]} 2. Nf3 {[%emt 0:00:04]} b6 {[%emt 0:00:24]} 3. g3 {[%emt 0:00:07]} Bb7 {[%emt 0:00:16]} 4. Bg2 {[%emt 0:00:02]} e6 {[%emt 0:00:54]} 5. O-O {[%emt 0:00:03]} Be7 {[%emt 0:00:05]} 6. Nc3 {[%emt 0:00:12]} O-O {[%emt 0:00:02]} 7. Re1 {[%emt 0:00:06]} c5 {[%emt 0:00:23]} 8. e4 {[%emt 0:00:04]} d6 {[%emt 0:00:03]} 9. d4 {[%emt 0:00:06]} cxd4 {[%emt 0:00:01]} 10. Nxd4 {[%emt 0:00:01]} Qc7 {[%emt 0:00:37]} 11. b3 {[%emt 0:00:22]} a6 {[%emt 0:00:07]} 12. Be3 {[%emt 0:00:50]} Nbd7 {[%emt 0:00:05]} 13. Rc1 {[%emt 0:00:03]} Rac8 {[%emt 0:00:18]} 14. Qe2 {[%emt 0:00:24]} Qb8 {[%emt 0:00:15]} 15. f3 {[%emt 0:00:16]} Rfe8 {[%emt 0:00:05]} 16. g4 {[%emt 0:00:36]} h6 {[%emt 0:00:45]} 17. f4 {[%emt 0:01:14]} Nc5 {[%emt 0:02:27]} 18. Bf2 {[%emt 0:01:06]} e5 {[%emt 0:03:35]} 19. fxe5 {[%emt 0:00:16]} dxe5 {[%emt 0:00:02]} 20. Nf5 {[%emt 0:00:02]} Ne6 {[%emt 0:00:32]} 21. Nxe7+ {[%emt 0:01:15]} Rxe7 {[%emt 0:00:03]} 22. Nd5 {[%emt 0:00:21]} Nxd5 {[%emt 0:00:19]} 23. cxd5 {[%emt 0:00:04]} Nd4 {[%emt 0:01:02]} 24. Qd3 {[%emt 0:00:21]} Rxc1 {[%emt 0:01:00]} 25. Rxc1 {[%emt 0:00:04]} Rc7 {[%emt 0:00:03]} 26. Rd1 {[%emt 0:00:26]} Rc3 {[%emt 0:00:10]} 27. Qf1 {[%emt 0:00:13]} Bc8 {[%emt 0:00:28]} 28. h3 {[%emt 0:00:18]} Rc2 {[%emt 0:00:14]} 29. Qd3 {[%emt 0:01:56]} Rc3 {[%emt 0:00:26]} 30. Qf1 {[%emt 0:01:04]} Rc2 {[%emt 0:00:02]} 31. Qd3 {[%emt 0:00:01]} Rc3 {[%emt 0:00:15]} 32. Qf1 {[%emt 0:00:04]} 1/2-1/2

[Event "European Online Club-ch-A 2021"]
[Site "Online"]
[Date "2021.03.27"]
[Round "1.16"]
[White "Czopor, Maciej"]
[Black "Csonka, Attila Istvan"]
[Result "1/2-1/2"]
[ECO "B47"]
[WhiteElo "2239"]
[BlackElo "2362"]
[Annotator "NA"]
[PlyCount "74"]
[EventDate "2021.03.27"]
[EventType "team-tourn"]
[EventCountry "NET"]
[SourceTitle "playchess.com"]
[Source "ChessBase"]
[SourceQuality "1"]
[TimeControl "900+5"]

1. e4 {[%emt 0:00:00]} c5 {[%emt 0:00:06]} 2. Nf3 {[%emt 0:00:04]} e6 {[%emt 0:00:06]} 3. d4 {[%emt 0:00:02]} cxd4 {[%emt 0:00:02]} 4. Nxd4 {[%emt 0:00:01]} Nc6 {[%emt 0:00:01]} 5. Nc3 {[%emt 0:00:02]} Qc7 {[%emt 0:00:03]} 6. Qd3 {[%emt 0:00:12]} a6 {[%emt 0:00:04]} 7. Nxc6 {[%emt 0:00:03]} dxc6 {[%emt 0:00:07]} 8. Qg3 {[%emt 0:00:56]} Qxg3 {[%emt 0:00:22]} 9. hxg3 {[%emt 0:00:02]} e5 {[%emt 0:00:04]} 10. Be3 {[%emt 0:01:51]} Be6 {[%emt 0:00:07]} 11. O-O-O {[%emt 0:00:13]} Nf6 {[%emt 0:00:22]} 12. f3 {[%emt 0:00:15]} Nd7 {[%emt 0:00:19]} 13. Na4 {[%emt 0:01:38]} b5 {[%emt 0:01:11]} 14. Nb6 {[%emt 0:00:31]} Rd8 {[%emt 0:00:15]} 15. Be2 {[%emt 0:01:18]} Bc5 {[%emt 0:00:53]} 16. Bxc5 {[%emt 0:00:13]} Nxc5 {[%emt 0:00:04]} 17. b4 {[%emt 0:00:16]} Nd7 {[%emt 0:02:09]} 18. Nxd7 {[%emt 0:01:09]} Rxd7 {[%emt 0:00:03]} 19. a3 {[%emt 0:01:02]} Rxd1+ {[%emt 0:00:19]} 20. Rxd1 {[%emt 0:00:05]} Ke7 {[%emt 0:00:03]} 21. c3 {[%emt 0:00:26]} Rc8 {[%emt 0:01:00]} 22. Kb2 {[%emt 0:00:36]} h6 {[%emt 0:00:25]} 23. a4 {[%emt 0:00:21]} Rd8 {[%emt 0:00:06]} 24. Rxd8 {[%emt 0:01:00]} Kxd8 {[%emt 0:00:04]} 25. a5 {[%emt 0:00:33]} Ke7 {[%emt 0:00:44]} 26. Kc2 {[%emt 0:00:54]} f6 {[%emt 0:02:04]} 27. Kd2 {[%emt 0:00:05]} Kd6 {[%emt 0:00:05]} 28. Ke3 {[%emt 0:00:07]} Bf7 {[%emt 0:01:46]} 29. f4 {[%emt 0:00:33]} Be6 {[%emt 0:00:02]} 30. Bh5 {[%emt 0:00:07]} Bc4 {[%emt 0:00:05]} 31. Bg6 {[%emt 0:00:18]} Be6 {[%emt 0:00:08]} 32. Kf3 {[%emt 0:00:16]} Ke7 {[%emt 0:00:10]} 33. Bh5 {[%emt 0:00:55]} Kd6 {[%emt 0:00:08]} 34. Ke3 {[%emt 0:00:54]} Ke7 {[%emt 0:00:04]} 35. Be2 {[%emt 0:00:18]} Kd6 {[%emt 0:00:09]} 36. Bf3 {[%emt 0:00:06]} Ke7 {[%emt 0:00:03]} 37. Be2 {[%emt 0:00:02]} Kd6 {[%emt 0:00:02]} 1/2-1/2

[Event "European Online Club-ch-A 2021"]
[Site "Online"]
[Date "2021.03.27"]
[Round "1.17"]
[White "Jakubowski, Krzysztof"]
[Black "Zavgorodniy, Sergiy"]
[Result "1-0"]
[ECO "C41"]
[WhiteElo "2497"]
[BlackElo "2418"]
[Annotator "ChessBase"]
[PlyCount "105"]
[EventDate "2021.03.27"]
[EventType "team-tourn"]
[EventCountry "NET"]
[SourceTitle "playchess.com"]
[Source "ChessBase"]
[SourceQuality "1"]
[TimeControl "900+5"]

1. e4 {[%emt 0:00:00]} e5 {[%emt 0:00:06]} 2. Nf3 {[%emt 0:00:05]} d6 {[%emt 0:00:03]} 3. d4 {[%emt 0:00:07]} exd4 {[%emt 0:00:02]} 4. Nxd4 {[%emt 0:00:04]} Nf6 {[%emt 0:00:02]} 5. Nc3 {[%emt 0:00:05]} Be7 {[%emt 0:00:03]} 6. Bc4 {[%emt 0:00:26]} O-O {[%emt 0:00:04]} 7. Bf4 {[%emt 0:00:08]} c6 {[%emt 0:00:30]} 8. O-O {[%emt 0:00:12]} b5 {[%emt 0:00:23]} 9. Bb3 {[%emt 0:00:04]} Qc7 {[%emt 0:02:34]} 10. Re1 {[%emt 0:01:05]} Nbd7 {[%emt 0:00:26]} 11. Nf5 {[%emt 0:01:49]} Ne5 {[%emt 0:00:04]} 12. Nxe7+ {[%emt 0:00:09]} Qxe7 {[%emt 0:00:03]} 13. h3 {[%emt 0:00:02]} a5 {[%emt 0:00:32]} 14. a3 {[%emt 0:00:31]} a4 {[%emt 0:00:03]} 15. Ba2 {[%emt 0:00:05]} Be6 {[%emt 0:00:03]} 16. Bxe5 {[%emt 0:04:12]} dxe5 {[%emt 0:00:05]} 17. Qe2 {[%emt 0:00:03]} Nd7 {[%emt 0:00:53]} 18. Bxe6 {[%emt 0:00:21]} Qxe6 {[%emt 0:00:05]} 19. Na2 {[%emt 0:00:11]} Nb6 {[%emt 0:01:34]} 20. Nb4 {[%emt 0:00:12]} Nc4 {[%emt 0:00:25]} 21. c3 {[%emt 0:00:08]} Rfd8 {[%emt 0:00:57]} 22. Rad1 {[%emt 0:00:06]} h5 {[%emt 0:00:13]} 23. h4 {[%emt 0:01:03]} g6 {[%emt 0:00:18]} 24. g3 {[%emt 0:00:04]} Kg7 {[%emt 0:00:06]} 25. Kg2 {[%emt 0:00:13]} Rac8 {[%emt 0:00:11]} 26. Kg1 {[%emt 0:00:43]} Qg4 {[%emt 0:01:30]} 27. Qxg4 {[%emt 0:02:34]} hxg4 {[%emt 0:00:04]} 28. Rxd8 {[%emt 0:00:02]} Rxd8 {[%emt 0:00:03]} 29. Nxc6 {[%emt 0:00:01]} Rd2 {[%emt 0:00:21]} 30. Rb1 {[%emt 0:00:03]} f6 {[%emt 0:01:08]} 31. Na7 {[%emt 0:00:28]} Nxb2 {[%emt 0:02:51]} 32. Nxb5 {[%emt 0:00:11]} Nd1 {[%emt 0:00:08]} 33. Rb4 {[%emt 0:00:56]} Nxf2 {[%emt 0:00:35]} 34. Rxa4 {[%emt 0:00:07]} f5 {[%emt 0:00:10]} 35. Ra7+ {[%emt 0:00:16]} Kf8 {[%emt 0:00:23]} 36. exf5 {[%emt 0:00:08]} gxf5 {[%emt 0:00:03]} 37. h5 {[%emt 0:00:16]} f4 {[%emt 0:00:27]} 38. h6 {[%emt 0:00:45]} Nh3+ {[%emt 0:00:02]} 39. Kf1 {[%emt 0:00:02]} f3 {[%emt 0:00:33]} 40. Ke1 {[%emt 0:00:01]} Re2+ {[%emt 0:00:03]} 41. Kd1 {[%emt 0:00:02]} Nf2+ {[%emt 0:00:04]} 42. Kc1 {[%emt 0:00:02]} Nd3+ {[%emt 0:00:02]} 43. Kd1 {[%emt 0:00:01]} Rh2 {[%emt 0:00:04]} 44. h7 {[%emt 0:00:02]} Nf2+ {[%emt 0:00:07]} 45. Ke1 {[%emt 0:00:09]} Ne4 {[%emt 0:00:03]} 46. Ra8+ {[%emt 0:00:07]} Kg7 {[%emt 0:00:03]} 47. h8=Q+ {[%emt 0:00:03]} Rxh8 {[%emt 0:00:02]} 48. Rxh8 {[%emt 0:00:02]} Kxh8 {[%emt 0:00:02]} 49. a4 {[%emt 0:00:01]} Nc5 {[%emt 0:00:17]} 50. a5 {[%emt 0:00:07]} e4 {[%emt 0:00:05]} 51. Kf2 {[%emt 0:00:07]} Nd3+ {[%emt 0:00:11]} 52. Ke3 {[%emt 0:00:04]} Ne5 {[%emt 0:00:02]} 53. Nd6 {[%emt 0:00:10]} 1-0

[Event "European Online Club-ch-A 2021"]
[Site "Online"]
[Date "2021.03.27"]
[Round "1.18"]
[White "Grinev, Valeriy"]
[Black "Schmidek, Emil"]
[Result "0-1"]
[ECO "E03"]
[WhiteElo "2441"]
[BlackElo "2402"]
[Annotator "NA"]
[PlyCount "94"]
[EventDate "2021.03.27"]
[EventType "team-tourn"]
[EventCountry "NET"]
[SourceTitle "playchess.com"]
[Source "ChessBase"]
[SourceQuality "1"]
[TimeControl "900+5"]

1. c4 {[%emt 0:00:00]} e6 {[%emt 0:00:02]} 2. Nf3 {[%emt 0:00:04]} Nf6 {[%emt 0:00:05]} 3. g3 {[%emt 0:00:01]} d5 {[%emt 0:00:01]} 4. d4 {[%emt 0:00:02]} dxc4 {[%emt 0:00:03]} 5. Qa4+ {[%emt 0:00:02]} Nbd7 {[%emt 0:00:19]} 6. Bg2 {[%emt 0:00:19]} a6 {[%emt 0:00:43]} 7. Qxc4 {[%emt 0:00:05]} b5 {[%emt 0:00:01]} 8. Qc6 {[%emt 0:00:13]} Rb8 {[%emt 0:00:25]} 9. Bf4 {[%emt 0:00:13]} Nd5 {[%emt 0:01:34]} 10. Bg5 {[%emt 0:00:04]} Be7 {[%emt 0:00:11]} 11. Bxe7 {[%emt 0:00:03]} Qxe7 {[%emt 0:01:22]} 12. O-O {[%emt 0:01:02]} Bb7 {[%emt 0:00:12]} 13. Qc2 {[%emt 0:00:08]} c5 {[%emt 0:00:18]} 14. dxc5 {[%emt 0:00:04]} Qxc5 {[%emt 0:00:34]} 15. Qd2 {[%emt 0:04:40]} O-O {[%emt 0:03:47]} 16. Rc1 {[%emt 0:00:05]} Qb6 {[%emt 0:00:31]} 17. Nc3 {[%emt 0:00:15]} N7f6 {[%emt 0:00:34]} 18. Nxd5 {[%emt 0:00:29]} Bxd5 {[%emt 0:00:13]} 19. a3 {[%emt 0:02:35]} Rfd8 {[%emt 0:00:21]} 20. Qf4 {[%emt 0:00:55]} Bxf3 {[%emt 0:03:08]} 21. Bxf3 {[%emt 0:00:05]} Qd4 {[%emt 0:00:17]} 22. Qxd4 {[%emt 0:01:31]} Rxd4 {[%emt 0:00:00]} 23. b4 {[%emt 0:00:02]} Nd7 {[%emt 0:01:16]} 24. Rc6 {[%emt 0:01:32]} Nb6 {[%emt 0:00:10]} 25. Rac1 {[%emt 0:00:08]} g6 {[%emt 0:00:03]} 26. R1c3 {[%emt 0:00:53]} Kg7 {[%emt 0:00:33]} 27. e3 {[%emt 0:00:59]} Rd2 {[%emt 0:00:15]} 28. Kf1 {[%emt 0:00:23]} Ra2 {[%emt 0:00:08]} 29. Be2 {[%emt 0:00:15]} Ra1+ {[%emt 0:00:08]} 30. Kg2 {[%emt 0:00:02]} Ra2 {[%emt 0:00:01]} 31. Bf1 {[%emt 0:00:02]} h5 {[%emt 0:00:03]} 32. Rd6 {[%emt 0:00:06]} Nd5 {[%emt 0:00:04]} 33. Rb3 {[%emt 0:00:15]} Rb6 {[%emt 0:00:03]} 34. Rxb6 {[%emt 0:00:03]} Nxb6 {[%emt 0:00:02]} 35. Bd3 {[%emt 0:00:07]} Kf6 {[%emt 0:00:05]} 36. Kf3 {[%emt 0:00:03]} Ke5 {[%emt 0:00:01]} 37. h4 {[%emt 0:00:05]} Kd5 {[%emt 0:00:20]} 38. Rc3 {[%emt 0:00:07]} Na4 {[%emt 0:00:05]} 39. Be4+ {[%emt 0:00:03]} Ke5 {[%emt 0:00:04]} 40. Rc6 {[%emt 0:00:04]} Nb2 {[%emt 0:00:09]} 41. Rxa6 {[%emt 0:00:07]} Nd1 {[%emt 0:00:01]} 42. g4 {[%emt 0:00:10]} hxg4+ {[%emt 0:00:05]} 43. Kxg4 {[%emt 0:00:05]} Nxf2+ {[%emt 0:00:02]} 44. Kf3 {[%emt 0:00:02]} Nxe4 {[%emt 0:00:01]} 45. Rb6 {[%emt 0:00:01]} Kf5 {[%emt 0:00:16]} 46. Rxb5+ {[%emt 0:00:03]} e5 {[%emt 0:00:01]} 47. Rb7 {[%emt 0:00:12]} Rf2# {[%emt 0:00:02]} 0-1

[Event "European Online Club-ch-A 2021"]
[Site "Online"]
[Date "2021.03.27"]
[Round "1.19"]
[White "Wintzer, Joachim"]
[Black "Mitusov, Semen"]
[Result "1-0"]
[ECO "D26"]
[WhiteElo "2274"]
[BlackElo "2297"]
[Annotator "NA"]
[PlyCount "85"]
[EventDate "2021.03.27"]
[EventType "team-tourn"]
[EventCountry "NET"]
[SourceTitle "playchess.com"]
[Source "ChessBase"]
[SourceQuality "1"]
[TimeControl "900+5"]

1. d4 {[%emt 0:00:00]} d5 {[%emt 0:00:15]} 2. c4 {[%emt 0:00:04]} dxc4 {[%emt 0:00:17]} 3. e3 {[%emt 0:00:07]} Nf6 {[%emt 0:00:08]} 4. Bxc4 {[%emt 0:00:04]} a6 {[%emt 0:00:04]} 5. Nf3 {[%emt 0:00:11]} e6 {[%emt 0:00:05]} 6. O-O {[%emt 0:00:06]} b5 {[%emt 0:00:16]} 7. Bd3 {[%emt 0:00:14]} Bb7 {[%emt 0:00:09]} 8. a4 {[%emt 0:00:04]} b4 {[%emt 0:00:09]} 9. Nbd2 {[%emt 0:00:03]} a5 {[%emt 0:00:36]} 10. Nb3 {[%emt 0:00:09]} Nbd7 {[%emt 0:00:12]} 11. Qe2 {[%emt 0:01:33]} Ne4 {[%emt 0:01:12]} 12. Nfd2 {[%emt 0:00:45]} Nxd2 {[%emt 0:01:27]} 13. Bxd2 {[%emt 0:00:12]} Be7 {[%emt 0:00:42]} 14. Rac1 {[%emt 0:02:26]} e5 {[%emt 0:00:34]} 15. e4 {[%emt 0:00:42]} O-O {[%emt 0:00:58]} 16. Be3 {[%emt 0:02:04]} Bd6 {[%emt 0:02:35]} 17. d5 {[%emt 0:01:11]} Qe7 {[%emt 0:00:44]} 18. Rc2 {[%emt 0:00:22]} g6 {[%emt 0:00:09]} 19. Rfc1 {[%emt 0:00:41]} f5 {[%emt 0:00:12]} 20. Nc5 {[%emt 0:00:19]} fxe4 {[%emt 0:00:50]} 21. Bxe4 {[%emt 0:00:13]} Nxc5 {[%emt 0:00:38]} 22. Bxc5 {[%emt 0:00:03]} Rf7 {[%emt 0:00:12]} 23. f3 {[%emt 0:00:15]} Qd7 {[%emt 0:00:32]} 24. Qb5 {[%emt 0:00:31]} Qxb5 {[%emt 0:00:31]} 25. axb5 {[%emt 0:00:02]} Rb8 {[%emt 0:00:25]} 26. Ra1 {[%emt 0:00:26]} Ra8 {[%emt 0:00:09]} 27. Kf2 {[%emt 0:01:07]} Rd7 {[%emt 0:00:18]} 28. Ke3 {[%emt 0:00:09]} Kf7 {[%emt 0:00:06]} 29. b3 {[%emt 0:00:37]} Bxc5+ {[%emt 0:00:37]} 30. Rxc5 {[%emt 0:00:02]} Ke7 {[%emt 0:00:01]} 31. h4 {[%emt 0:00:54]} Ra7 {[%emt 0:00:44]} 32. g4 {[%emt 0:00:09]} Kd6 {[%emt 0:00:02]} 33. Rac1 {[%emt 0:00:55]} a4 {[%emt 0:00:09]} 34. bxa4 {[%emt 0:00:20]} Rxa4 {[%emt 0:00:04]} 35. b6 {[%emt 0:00:10]} Ra3+ {[%emt 0:00:19]} 36. Kf2 {[%emt 0:00:06]} b3 {[%emt 0:00:30]} 37. Rxc7 {[%emt 0:00:13]} Ba6 {[%emt 0:00:07]} 38. Rxd7+ {[%emt 0:00:05]} Kxd7 {[%emt 0:00:01]} 39. Rc7+ {[%emt 0:00:07]} Kd6 {[%emt 0:00:01]} 40. Ra7 {[%emt 0:00:02]} b2 {[%emt 0:00:07]} 41. b7 {[%emt 0:00:03]} Kc7 {[%emt 0:00:02]} 42. d6+ {[%emt 0:00:04]} Kb8 {[%emt 0:00:07]} 43. Ra8# {[%emt 0:00:03]} 1-0

[Event "European Online Club-ch-A 2021"]
[Site "Online"]
[Date "2021.03.27"]
[Round "1.20"]
[White "Vovk, Orest"]
[Black "Noetzel, Felix"]
[Result "1-0"]
[ECO "A00"]
[WhiteElo "2315"]
[BlackElo "2263"]
[Annotator "NA"]
[PlyCount "77"]
[EventDate "2021.03.27"]
[EventType "team-tourn"]
[EventCountry "NET"]
[SourceTitle "playchess.com"]
[Source "ChessBase"]
[SourceQuality "1"]
[TimeControl "900+5"]

1. h3 {[%emt 0:00:00]} d5 {[%emt 0:00:07]} 2. e4 {[%emt 0:00:03]} dxe4 {[%emt 0:00:06]} 3. Nc3 {[%emt 0:00:02]} Nf6 {[%emt 0:00:46]} 4. Qe2 {[%emt 0:00:05]} Bd7 {[%emt 0:01:30]} 5. Nxe4 {[%emt 0:00:11]} Nxe4 {[%emt 0:00:03]} 6. Qxe4 {[%emt 0:00:03]} Bc6 {[%emt 0:00:02]} 7. Qe3 {[%emt 0:00:35]} Nd7 {[%emt 0:01:21]} 8. Nf3 {[%emt 0:00:11]} b6 {[%emt 0:00:44]} 9. d4 {[%emt 0:00:09]} e6 {[%emt 0:00:02]} 10. Bd3 {[%emt 0:00:08]} Be7 {[%emt 0:00:30]} 11. O-O {[%emt 0:00:04]} O-O {[%emt 0:00:02]} 12. Qe2 {[%emt 0:00:21]} Bb7 {[%emt 0:00:26]} 13. Rd1 {[%emt 0:00:33]} Bf6 {[%emt 0:00:45]} 14. Ne5 {[%emt 0:00:36]} c5 {[%emt 0:01:32]} 15. Bb5 {[%emt 0:01:10]} Nb8 {[%emt 0:02:44]} 16. dxc5 {[%emt 0:01:10]} Qc7 {[%emt 0:00:39]} 17. Nd7 {[%emt 0:00:14]} Nxd7 {[%emt 0:00:21]} 18. Rxd7 {[%emt 0:00:08]} Qc8 {[%emt 0:00:04]} 19. cxb6 {[%emt 0:00:26]} axb6 {[%emt 0:00:09]} 20. c3 {[%emt 0:01:08]} Rd8 {[%emt 0:00:11]} 21. Rxd8+ {[%emt 0:00:27]} Qxd8 {[%emt 0:00:00]} 22. Qd3 {[%emt 0:00:26]} Qc7 {[%emt 0:01:18]} 23. Qd7 {[%emt 0:00:56]} Qxd7 {[%emt 0:01:13]} 24. Bxd7 {[%emt 0:00:05]} Bd5 {[%emt 0:00:24]} 25. a4 {[%emt 0:00:32]} Bb3 {[%emt 0:00:13]} 26. Be3 {[%emt 0:00:24]} Rd8 {[%emt 0:00:08]} 27. Bb5 {[%emt 0:00:08]} Rd6 {[%emt 0:00:17]} 28. Be2 {[%emt 0:01:12]} g6 {[%emt 0:00:09]} 29. Ra3 {[%emt 0:00:47]} Bc2 {[%emt 0:00:47]} 30. b4 {[%emt 0:00:23]} Kg7 {[%emt 0:00:28]} 31. a5 {[%emt 0:00:59]} bxa5 {[%emt 0:00:02]} 32. bxa5 {[%emt 0:00:03]} Be5 {[%emt 0:00:27]} 33. a6 {[%emt 0:00:16]} Bd1 {[%emt 0:00:02]} 34. Bf1 {[%emt 0:00:26]} Bc2 {[%emt 0:00:08]} 35. a7 {[%emt 0:00:23]} Rd1 {[%emt 0:00:02]} 36. a8=Q {[%emt 0:00:58]} Bd3 {[%emt 0:00:02]} 37. f4 {[%emt 0:00:08]} Rxf1+ {[%emt 0:00:11]} 38. Kh2 {[%emt 0:00:02]} Bd6 {[%emt 0:00:07]} 39. Ra1 {[%emt 0:00:26]} 1-0